Cogmind - Beta 14 @@@ ROGUE MODE // 2024.09.07 @ 00:14:07 Player: Daffa0360 Result: Self-destructed Performance ------------- Evolutions (7) 3500 Regions Visited (21) 4200 Robots Destroyed (100) 500 Value Destroyed (8644) 8644 Prototype IDs (37) 740 Alien Tech Used (0) 0 Bonus (9486) 9486 TOTAL SCORE: 27070 Bonus ------- High Alert Combat Kills 842 Follower Combat Kills 4451 Entered Garrisons 1000 Used RIF Installer 2500 Entered DSFs 500 Aligned with FarCom 300 Friendly Fire -107 Cogmind --------- Core Integrity 787/1300 Matter 240/300 Energy 100/100 System Corruption 0% Temperature Cool (0) Movement Core (50) Location -3/Research Parts ------- > --- POWER (2) -------- (None) > --- PROPULSION (4) --- Impulse Thruster Array > --- UTILITY (13) ----- Gravity Neutralizer Advanced Visual Processing Unit Advanced Targeting Computer Improved Target Analyzer Relay Coupler [Brawler] (40) Relay Coupler [Specialist] (31) Relay Coupler [Heavy] (2) Relay Coupler [Behemoth] (2) System Guard Advanced Corruption Screen > --- WEAPON (2) ------- (None) > --- INVENTORY (5) ---- Relay Coupler [Sentry] (29) Backup Laser III Improved Remote Datajack Peak State ------------ > --- POWER ------------ Light Particle Reactor Quantum Reactor > --- PROPULSION ------- Advanced Heavy Siege Treads Impulse Thruster Array > --- UTILITY ---------- Gravity Neutralizer Advanced Visual Processing Unit Advanced Signal Interpreter Advanced Targeting Computer Improved Target Analyzer Advanced Phase Shifter Centrium Light Armor Plating Relay Coupler [Specialist] Relay Coupler [Hunter] Relay Coupler [Heavy] Relay Coupler [Behemoth] System Guard Advanced Corruption Screen > --- WEAPON ----------- Enhanced Quantum Rifle Plasma Lance > --- INVENTORY -------- Relay Coupler [Heavy] Improved Remote Datajack Advanced Remote Datajack [Rating: 145] Favorites ----------- Power Micro Fission Core Engine Light Deuterium Engine Power Core Micro Fission Core Reactor Light Quantum Reactor Propulsion Cesium-ion Thruster Treads Advanced Heavy Siege Treads Leg Flexi-carbon Leg Hover Unit Antigrav System Flight Unit Cesium-ion Thruster Utility Advanced Targeting Computer Device Advanced Weight Redist. System Storage Small Storage Unit Processor Advanced Targeting Computer Hackware Relay Coupler [Behemoth] Protection Centrium Light Armor Plating Weapon Plasma Lance Energy Gun Medium Laser Energy Cannon Long-range Proton Cannon Ballistic Gun Hypervelocity Coil Gun Ballistic Cannon Enhanced Gauss Cannon Launcher Micro-nuke Launcher Special Weapon Improved Remote Datajack Impact Weapon Power Maul Slashing Weapon Great Axe Piercing Weapon Plasma Lance Special Melee Weapon Datajack Build | -11 -10 -10 -10 -9 -8 -8 -7 -7 -6 -6 -6 -5 -5 -5 -5 -4 -4 -4 -3 -3 -3 ------- Run | Yrd Mat Min Exi Min Mat Gar Fac DSF Fac Gar Fac Fac Gar Fac Gar Fac Was Fac Res Gar Res Slots Evolved 14 | . . . . . 4 . 2 . 2 . . 2 . . . 2 . . 2 . . Power 1 | . . . . . . . . . . . . 1 . . . . . . . . . Propulsion 2 | . . . . . . . 1 . . . . . . . . 1 . . . . . Utility 11 | . . . . . 4 . 1 . 2 . . 1 . . . 1 . . 2 . . Weapon . | . . . . . . . . . . . . . . . . . . . . . . Parts Attached 204 | 1 . 4 . . 16 30 2 2 8 25 6 26 36 10 21 1 . 6 6 1 3 Power 25 | . . 1 . . 3 1 . . . 1 2 4 4 2 4 . . 2 1 . . Engine 3 | . . . . . 3 . . . . . . . . . . . . . . . . Core 13 | . . 1 . . . 1 . . . . 1 4 3 1 1 . . 1 . . . Reactor 9 | . . . . . . . . . . 1 1 . 1 1 3 . . 1 1 . . Propulsion 28 | . . 2 . . 2 7 . 2 1 4 . 4 2 1 2 . . . 1 . . Treads 2 | . . . . . . . . . . . . 1 . . 1 . . . . . . Leg 1 | . . . . . . . . . . 1 . . . . . . . . . . . Wheel . | . . . . . . . . . . . . . . . . . . . . . . Hover 5 | . . 2 . . . . . . . . . 3 . . . . . . . . . Flight 20 | . . . . . 2 7 . 2 1 3 . . 2 1 1 . . . 1 . . Utility 91 | . . 1 . . 7 9 . . 5 18 2 14 13 7 9 1 . 1 2 1 1 Device 38 | . . . . . 4 2 . . 2 8 . 9 5 6 1 . . 1 . . . Storage 1 | . . . . . . . . . . . . . 1 . . . . . . . . Processor 10 | . . . . . 2 . . . 2 1 . 3 1 . . . . . 1 . . Hackware 33 | . . . . . 1 5 . . . 9 1 1 5 1 7 1 . . . 1 1 Protection 9 | . . 1 . . . 2 . . 1 . 1 1 1 . 1 . . . 1 . . Artifact . | . . . . . . . . . . . . . . . . . . . . . . Weapon 60 | 1 . . . . 4 13 2 . 2 2 2 4 17 . 6 . . 3 2 . 2 Energy Gun 12 | 1 . . . . 1 3 . . . . . 1 2 . 1 . . 2 1 . . Energy Cannon 1 | . . . . . . . . . . . . 1 . . . . . . . . . Ballistic Gun 6 | . . . . . . . . . . . . . 5 . . . . . . . 1 Ballistic Cannon 8 | . . . . . 3 2 1 . . 1 1 . . . . . . . . . . Launcher 9 | . . . . . . 2 . . . . . . 3 . 2 . . 1 1 . . Special Weapon 10 | . . . . . . . . . 1 . 1 . 4 . 3 . . . . . 1 Impact Weapon 5 | . . . . . . . 1 . 1 . . 1 2 . . . . . . . . Slashing Weapon 6 | . . . . . . 4 . . . 1 . 1 . . . . . . . . . Piercing Weapon 1 | . . . . . . . . . . . . . 1 . . . . . . . . Special Melee Weapon 2 | . . . . . . 2 . . . . . . . . . . . . . . . Unidentified Prototypes 10 | . . . . . . . . . . . 1 1 7 . . . . 1 . . . Parts Lost 42 | . . . . . 1 4 . 1 . 5 1 10 4 . 3 . . 2 2 . 9 Power 5 | . . . . . . . . . . . . 1 1 . 1 . . . . . 2 Propulsion 13 | . . . . . . 3 . 1 . 3 . 1 2 . 1 . . 1 . . 1 Utility 17 | . . . . . . 1 . . . 2 1 7 1 . 1 . . 1 . . 3 Weapon 7 | . . . . . 1 . . . . . . 1 . . . . . . 2 . 3 Highest Loss Streak 9 | . . . . . 1 3 . 1 . 4 1 3 1 . 2 . . 2 1 . 9 To Critical Strikes 1 | . . . . . . . . . . . . . . . . . . . . . 1 Average Slot Usage (%) 91 | . 85 89 100 100 93 92 84 90 97 94 95 93 89 88 90 86 89 84 88 88 81 Engine 1 | . 14 7 . . 7 5 . . . . . . . . . . . 1 3 . . Core 3 | . . 7 14 14 1 3 7 7 6 2 . 6 10 10 2 . . . . . . Reactor 3 | . . . . . . . . . . 3 5 3 . . 4 10 10 8 4 9 6 Treads 1 | . . . . . . . . . . . . 2 . . . 5 5 5 4 4 3 Leg 1 | . 28 19 . . . . . . . 2 6 3 . . . . . . . . . Hover 1 | . . 8 28 28 3 . . . . . . 4 5 . . . . . . . . Flight 9 | . . . . . 14 17 15 21 20 14 13 3 2 5 9 5 5 1 3 4 4 Device 7 | . . . . . 19 9 7 7 11 4 6 11 9 4 5 5 5 8 9 9 7 Storage 3 | . 14 14 14 14 9 9 7 7 6 6 6 1 . . . . . . . . . Processor 24 | . . . . . 15 18 15 15 23 26 26 29 36 33 29 26 26 26 26 28 27 Hackware 13 | . . . . . 4 11 15 15 13 19 12 4 5 12 19 23 26 22 19 17 17 Protection 2 | . . 4 14 14 4 2 . . 2 . 3 3 4 5 2 . . . 3 4 3 Energy Gun 3 | . 28 28 28 28 9 4 . . . . . 1 1 . . . . 2 3 9 4 Ballistic Cannon 1 | . . . . . 3 2 . 7 . 1 4 3 . . . . . . . . . Special Weapon 2 | . . . . . . . . . 5 4 1 . 1 5 4 5 5 1 . . 2 Slashing Weapon 1 | . . . . . . 3 1 . . 5 6 3 . . . . . . . . . Piercing Weapon 1 | . . . . . . . . . . . . . 1 5 5 5 5 5 4 . . Peak Build Rating 145 | 6 7 16 17 17 34 34 29 36 53 67 68 82 102 99 106 111 112 113 145 140 142 Average Rating 69 | 6 6 10 16 17 30 27 26 34 50 56 64 75 84 93 96 108 111 109 137 136 125 On Entrance 61 | 6 6 7 16 17 17 33 26 29 36 53 66 65 80 95 93 106 111 112 107 137 132 Naked Turns . | . . . . . . . . . . . . . . . . . . . . . . Heaviest Build 51 | 12 12 16 16 16 23 24 23 23 25 39 40 47 50 23 42 42 42 47 49 48 51 Greatest Support 92 | 20 20 20 16 16 25 19 17 25 27 27 20 40 40 32 92 92 92 92 92 92 92 Greatest Overweight (x) 7 | . . . . . 1 1 1 1 . 7 1 3 1 1 1 . . . . . . Average Overweight (x) . | . . . . . . . . . . . 1 . . . . . . . . . . Largest Inventory Capacity 8 | 8 8 8 8 8 8 8 8 8 8 8 8 8 5 5 5 5 5 5 5 5 5 Average Capacity 6 | 8 8 8 8 8 8 8 8 8 8 8 8 5 5 5 5 5 5 5 5 5 5 Most Carried 8 | 7 8 8 8 8 8 8 8 8 8 8 8 8 5 5 5 5 5 5 5 4 4 Average Carried 5 | 6 7 7 8 8 7 7 7 8 7 7 7 5 4 4 4 4 4 4 2 3 3 Final Capacity 8 | 8 8 8 8 8 8 8 8 8 8 8 8 5 5 5 5 5 5 5 5 5 5 Final Carried 8 | 7 8 8 8 8 8 8 8 8 8 8 7 5 5 5 5 4 5 4 3 4 3 Class Distribution -------------------- 44% | Bothacker-Mutant 16% | Mutant 14% | Scavenger-Mutant 6% | Assassin 4% | Bothacker-Scout 3% | Scout 3% | Sprinter 3% | Commander-Mutant Dominant Class ---------------- Mutant | -10/Materials Mutant | -10/Mines Mutant | -10/Exiles Mutant | -9/Mines Scout | -8/Materials Mutant | -8/Garrison Commander-Mutant | -7/Factory Bothacker-Mutant | -7/DSF Bothacker-Scout | -6/Factory Bothacker-Mutant | -6/Garrison Bothacker-Mutant | -6/Factory Assassin | -5/Factory Scavenger-Mutant | -5/Garrison Scavenger-Mutant | -5/Factory Bothacker-Mutant | -5/Garrison Bothacker-Mutant | -4/Factory Bothacker-Mutant | -4/Waste Bothacker-Mutant | -4/Factory Bothacker-Mutant | -3/Research Bothacker-Mutant | -3/Garrison Bothacker-Mutant | -3/Research Resources | -11 -10 -10 -10 -9 -8 -8 -7 -7 -6 -6 -6 -5 -5 -5 -5 -4 -4 -4 -3 -3 -3 ----------- Run | Yrd Mat Min Exi Min Mat Gar Fac DSF Fac Gar Fac Fac Gar Fac Gar Fac Was Fac Res Gar Res Matter Collected 4090 | 210 60 40 . . 135 618 . 148 . 557 135 305 996 . 655 24 28 96 73 10 . Remotely . | . . . . . . . . . . . . . . . . . . . . . . Salvage Created 4716 | 196 123 94 . . 243 723 . 109 . 222 105 401 1140 . 556 . . 289 102 211 202 Parts 197 | 8 5 6 . . 9 38 . 4 . 9 4 22 37 . 21 . . 9 8 10 7 Haulers Intercepted 4 | . . . . . 1 . . . . . . 1 . . . . . 2 . . . Recyclers Shooed 2 | . . . . . 1 . . . . . 1 . . . . . . . . . . Parts Field Recycled . | . . . . . . . . . . . . . . . . . . . . . . Retrieved Matter . | . . . . . . . . . . . . . . . . . . . . . . Parts Self-Destructed . | . . . . . . . . . . . . . . . . . . . . . . Prevented . | . . . . . . . . . . . . . . . . . . . . . . Kills | -11 -10 -10 -10 -9 -8 -8 -7 -7 -6 -6 -6 -5 -5 -5 -5 -4 -4 -4 -3 -3 -3 ------- Run | Yrd Mat Min Exi Min Mat Gar Fac DSF Fac Gar Fac Fac Gar Fac Gar Fac Was Fac Res Gar Res Combat Hostiles Destroyed 79 | . 3 1 . . 2 22 . 3 . 2 3 8 19 . 9 . . 1 2 3 1 Melee 16 | . . . . . . 1 . . . 1 . 2 3 . 9 . . . . . . Guns 27 | . 3 1 . . 1 10 . . . . . . 7 . . . . . 1 3 1 Cannons 19 | . . . . . . 7 . 3 . 1 3 5 . . . . . . . . . AOE 13 | . . . . . . 3 . . . . . . 8 . . . . 1 1 . . Classes Destroyed 17 | 2 3 1 . . 3 3 . . . 1 . 1 2 . . . . 1 . . . Worker 2 | . . 2 . . . . . . . . . . . . . . . . . . . Builder 2 | . . . . . 1 . . . . . . . . . . . . . 1 . . Tunneler 6 | 5 . . . . . . . . . . . . . . . . . 1 . . . Hauler 4 | . . . . . 1 . . . . . . 1 . . . . . 2 . . . Recycler 3 | 1 . . . . 1 . . . . . . . . . . . . . . . 1 Mechanic 1 | . . . . . . . . . . . . . . . . . . 1 . . . Operator 2 | . 1 . . . . . . . . . . . . . . . . 1 . . . Watcher 1 | . . . . . . . . . . . . 1 . . . . . . . . . Swarmer 20 | . 1 . . . . 11 . . . . . . 8 . . . . . . . . Grunt 21 | . 2 1 . . 1 4 . 2 . . . . 6 . 2 . . . 1 2 . Brawler 1 | . . . . . . 1 . . . . . . . . . . . . . . . Duelist 4 | . . . . . . 2 . . . . . . 2 . . . . . . . . Sentry 9 | . . . . . 1 2 . . . 1 1 . . . 4 . . . . . . Hunter 6 | . . . . . . 2 . 1 . . . 1 . . . . . 1 . . 1 Programmer 14 | . . . . . . . . . . 1 2 7 . . 2 . . . 1 1 . Behemoth 2 | . . . . . . . . . . . . . 1 . 1 . . . . . . Executioner 2 | . . . . . . . . . . . . . 2 . . . . . . . . Best Kill Streak 4 | 4 2 2 . . 1 4 . 2 . 1 2 2 4 . 2 . . 4 3 2 2 Combat Bots Only 4 | . 2 1 . . 1 4 . 2 . 1 2 2 4 . 2 . . 1 2 2 1 Max Kills in Single Turn 3 | 2 1 1 . . 1 2 . 1 . 1 1 1 3 . 1 . . 2 2 1 1 Gunslinging . | . . . . . . . . . . . . . . . . . . . . . . Exploded 3 | . . . . . . 2 . . . . . . 3 . . . . 1 1 . . Melee 1 | . . . . . . 1 . . . 1 . 1 1 . 1 . . . . . . Uniques/NPCs Destroyed . | . . . . . . . . . . . . . . . . . . . . . . Combat | -11 -10 -10 -10 -9 -8 -8 -7 -7 -6 -6 -6 -5 -5 -5 -5 -4 -4 -4 -3 -3 -3 -------- Run | Yrd Mat Min Exi Min Mat Gar Fac DSF Fac Gar Fac Fac Gar Fac Gar Fac Was Fac Res Gar Res Hostile Shots Fired 607 | . 31 8 . . 15 109 . 5 . 33 9 76 77 . 60 6 . 23 23 17 115 Missed 205 | . 9 1 . . 4 47 . 2 . 12 5 20 22 . 21 4 . 6 8 10 34 Damage Taken 7951 | . 223 109 . . 165 652 . 114 . 434 162 1121 1146 56 1022 58 . 402 458 215 1614 Core 1635 | . 22 48 . . 60 162 . 10 . 96 44 164 263 . 208 . . 45 23 39 451 Absorbed by Shields 59 | . . . . . . 41 . . . . . . . . 18 . . . . . . Redirected to Shielding 185 | . . . . . 34 . . . . . 14 137 . . . . . . . . . Ignored by Resistances 22 | . . . . . . 22 . . . . . . . . . . . . . . . Regen/Repaired (Parts) 848 | . . . . . . . . . 116 . . . . 5 18 . . 20 206 296 187 Core Remaining (%) 77 | 100 . . . 72 . 59 . 98 . . 83 . . . 36 . . 96 . . . Volleys Fired 356 | 8 18 6 . 1 17 73 . 18 2 33 14 38 52 3 24 3 3 5 10 6 22 Largest 2 | 2 2 2 . 2 2 2 . 1 1 1 1 1 1 1 1 1 1 1 1 2 1 Hottest 105 | 100 100 100 . 100 100 94 . 48 5 57 57 65 94 7 49 7 7 65 65 105 65 Shots Fired 425 | 16 36 12 . 2 25 96 . 18 2 33 13 38 52 3 24 3 3 5 10 12 22 Gun 229 | 16 36 12 . 2 22 56 . . . . . 6 34 . . . . 3 9 12 21 Cannon 109 | . . . . . 3 38 . 18 . 7 11 32 . . . . . . . . . Launcher 16 | . . . . . . 2 . . . . . . 6 . 5 . . 2 1 . . Special 71 | . . . . . . . . . 2 26 2 . 12 3 19 3 3 . . . 1 Kinetic 151 | . . . . . 3 38 . 18 . 7 11 32 29 . . . . . . . 13 Thermal 124 | 16 36 12 . 2 21 . . . . . . . 5 . . . . 3 9 12 8 Explosive 14 | . . . . . . . . . . . . . 6 . 5 . . 2 1 . . Electromagnetic 65 | . . . . . 1 58 . . . . . 6 . . . . . . . . . Robot Hit Streak 32 | 11 10 8 . . 12 9 . 6 4 14 7 8 12 5 15 18 21 23 32 8 13 Robot Miss Streak 4 | 1 4 1 . . 1 3 . 2 . 1 1 4 2 1 1 . . . 1 . 1 Penetration Max 1 | . . . . . . . . 1 . . . 1 . . . . . . . . . Secondary Targets . | . . . . . . . . . . . . . . . . . . . . . . Shots Hit Robots 374 | 13 25 9 . . 20 71 . 11 2 35 10 33 51 2 42 3 3 7 9 8 20 Core Hits 161 | 7 9 5 . . 7 31 . 4 . 5 4 10 35 . 20 . . 8 7 3 6 Critical Kills 6 | . . . . . . . . . . . . . 4 . . . . . . . 2 Critical Parts Destroyed 11 | . . . . . . . . . . . . 3 7 . . . . . . . 1 Critical Strikes 41 | 4 2 . . . 3 2 . . . 1 1 11 12 . 2 . . . . . 3 Burn 9 | 4 2 . . . 3 . . . . . . . . . . . . . . . . Destroy 13 | . . . . . . . . . . . . . 10 . . . . . . . 3 Blast 9 | . . . . . . 1 . . . . 1 7 . . . . . . . . . Corrupt 1 | . . . . . . 1 . . . . . . . . . . . . . . . Smash 4 | . . . . . . . . . . . . 3 1 . . . . . . . . Sever 2 | . . . . . . . . . . 1 . 1 . . . . . . . . . Impale 3 | . . . . . . . . . . . . . 1 . 2 . . . . . . Melee Attacks 347 | . . . . . . 84 3 10 21 47 . 26 76 3 72 . . 5 . . . Impact 81 | . . . . . . . 3 10 21 . . 16 31 . . . . . . . . Slashing 127 | . . . . . . 70 . . . 47 . 10 . . . . . . . . . Piercing 125 | . . . . . . . . . . . . . 45 3 72 . . 5 . . . Sneak Attacks 14 | . . . . . . 5 . . . . . . 2 . 5 . . 2 . . . Combat Hostiles 7 | . . . . . . . . . . . . . 2 . 5 . . . . . . Follow-up Attacks 1 | . . . . . . . . . . . . 1 . . . . . . . . . Damage Inflicted 11495 | 161 306 122 . . 307 1380 . 354 . 902 309 1293 2321 . 1657 . . 1019 710 177 477 Guns 2760 | 161 306 122 . . 248 657 . . . . . 9 265 . . . . 61 277 177 477 Cannons 2057 | . . . . . 59 435 . 354 . 38 309 862 . . . . . . . . . Explosions 2404 | . . . . . . 164 . . . . . . 837 . 274 . . 696 433 . . Melee 4274 | . . . . . . 124 . . . 864 . 422 1219 . 1383 . . 262 . . . Ramming . | . . . . . . . . . . . . . . . . . . . . . . Kinetic 2473 | . . . . . 59 435 . 354 . 38 309 862 152 . . . . . . . 264 Thermal 1709 | 161 306 122 . . 227 52 . . . . . . 113 . . . . 61 277 177 213 Explosive 2240 | . . . . . . . . . . . . . 837 . 274 . . 696 433 . . Electromagnetic 799 | . . . . . 21 769 . . . . . 9 . . . . . . . . . Impact 388 | . . . . . . . . . . . . 224 164 . . . . . . . . Slashing 1186 | . . . . . . 124 . . . 864 . 198 . . . . . . . . . Piercing 2700 | . . . . . . . . . . . . . 1055 . 1383 . . 262 . . . Highest Corruption 7 | . . . . . . 1 . . . 3 5 7 4 4 3 . . . . . . Average Corruption 2 | . . . . . . 1 . . . 3 4 3 4 2 2 . . . . . . Corruption Purged 5 | . . . . . . . . . . . . 1 . 4 . . . . . . . Corruption Blocked 2 | . . . . . . . . . . . . . . . . . . . 2 . . Effects 179 | . . . . . . 13 . . . 42 13 27 40 6 38 . . . . . . Message Errors 41 | . . . . . . 1 . . . 8 1 8 16 3 4 . . . . . . Matter Fused 48 | . . . . . . 6 . . . 13 3 6 8 1 11 . . . . . . Heat Flow Errors 26 | . . . . . . 2 . . . 7 1 4 5 1 6 . . . . . . Energy Discharges 20 | . . . . . . 3 . . . 5 2 1 2 1 6 . . . . . . Parts Rejected 3 | . . . . . . . . . . . . 2 1 . . . . . . . . Parts Fused 3 | . . . . . . . . . . . . 1 2 . . . . . . . . Data Loss (minor) 20 | . . . . . . . . . . 7 2 2 3 . 6 . . . . . . Data Loss (major) 11 | . . . . . . 1 . . . 2 1 1 3 . 3 . . . . . . Alerts 6 | . . . . . . . . . . . 2 2 . . 2 . . . . . . Weapon Failures 1 | . . . . . . . . . . . 1 . . . . . . . . . . Overload Shots . | . . . . . . . . . . . . . . . . . . . . . . Overflow Damage 500 | . . . . . . 5 . . . 5 36 259 82 . 54 . . 4 55 . . Projectiles 130 | . . . . . . . . . . . 36 94 . . . . . . . . . Explosions 76 | . . . . . . 5 . . . . . . 12 . . . . 4 55 . . Melee 294 | . . . . . . . . . . 5 . 165 70 . 54 . . . . . . Knockbacks 17 | . . . . . . 2 . 2 . . 2 10 1 . . . . . . . . Impact 3 | . . . . . . . . . . . . 2 1 . . . . . . . . Kinetic 13 | . . . . . . 2 . 2 . . 2 7 . . . . . . . . . Secondary 1 | . . . . . . . . . . . . 1 . . . . . . . . . Self-Inflicted Damage 22 | . . . . . . . . . . . . . 22 . . . . . . . . Shots 1 | . . . . . . . . . . . . . 1 . . . . . . . . Rammed . | . . . . . . . . . . . . . . . . . . . . . . Targets Rammed . | . . . . . . . . . . . . . . . . . . . . . . Kicked . | . . . . . . . . . . . . . . . . . . . . . . Crushed . | . . . . . . . . . . . . . . . . . . . . . . Highest Temperature 333 | 156 333 162 . 51 180 216 . . . 259 155 214 279 234 262 . . 21 40 60 28 Average Temperature 74 | 80 122 58 . 27 91 51 . . . 112 88 65 86 118 87 . . 10 12 22 14 Received Heat Transfer 1327 | . 60 81 . . 72 144 . 9 . 24 12 . 417 9 207 . . 115 72 57 48 Effects 1 | . 1 . . . . . . . . . . . . . . . . . . . . Matter Decay 1 | . 1 . . . . . . . . . . . . . . . . . . . . Siege Activations . | . . . . . . . . . . . . . . . . . . . . . . Robots Corrupted 4 | . . . . . . 1 . . . . . 2 1 . . . . . . . . Combat Hostiles 3 | . . . . . . 1 . . . . . 1 1 . . . . . . . . Parts Fried 8 | . . . . . . 3 . . . . . 4 1 . . . . . . . . Impact Corruptions 7 | . . . . . . . . . . . . 6 1 . . . . . . . . Robots Melted 1 | . . . . . 1 . . . . . . . . . . . . . . . . Combat Hostiles 1 | . . . . . 1 . . . . . . . . . . . . . . . . Parts Melted 12 | 4 3 . . . 2 1 . . . . . . . . . . . . . 2 . Heat Transferred 4268 | 777 1073 370 . . 888 50 . . . . . . 148 . . . . 74 333 296 259 Parts Sabotaged . | . . . . . . . . . . . . . . . . . . . . . . Parts Stolen . | . . . . . . . . . . . . . . . . . . . . . . Parts Stripped . | . . . . . . . . . . . . . . . . . . . . . . Power Chain Reactions 2 | . . . . . . 2 . . . . . . . . . . . . . . . Alert | -11 -10 -10 -10 -9 -8 -8 -7 -7 -6 -6 -6 -5 -5 -5 -5 -4 -4 -4 -3 -3 -3 ------- Run | Yrd Mat Min Exi Min Mat Gar Fac DSF Fac Gar Fac Fac Gar Fac Gar Fac Was Fac Res Gar Res Peak Influence 1590 | 30 139 93 . . 85 1567 830 702 378 1385 752 274 1206 687 1348 1262 405 1590 1058 1082 648 Initial 834 | . 19 54 . . . 7 822 581 338 148 726 274 90 632 . 707 405 143 834 793 608 Average 508 | 13 66 56 . . 32 651 824 654 279 719 665 49 498 617 475 1022 331 844 909 960 601 Maximum Alert Level 4 | . . . . . . 4 3 3 1 4 3 1 4 2 4 4 2 4 3 3 2 Low Security (%) 32 | 100 100 100 . 100 100 25 . . 24 8 . 98 23 6 35 . . 1 . . . Level 1 11 | . . . . . . 8 . . 75 10 . 1 22 . 6 . 36 24 . . . Level 2 21 | . . . . . . 18 . 93 . 23 37 . 33 93 31 . 63 6 . . 100 Level 3 24 | . . . . . . 26 100 6 . 41 62 . 13 . 9 50 . 40 100 100 . Level 4 10 | . . . . . . 21 . . . 16 . . 6 . 16 49 . 26 . . . Level 5 . | . . . . . . . . . . . . . . . . . . . . . . High Security . | . . . . . . . . . . . . . . . . . . . . . . Max Security . | . . . . . . . . . . . . . . . . . . . . . . Squads Dispatched 24 | . . 1 . . 4 . . 1 . . 3 3 . 1 . 2 . 7 1 . 1 Investigation 4 | . . 1 . . . . . . . . 1 1 . . . . . 1 . . . Extermination 3 | . . . . . . . . . . . 1 2 . . . . . . . . . Reinforcement 8 | . . . . . 1 . . 1 . . . . . . . 1 . 3 1 . 1 Assault 6 | . . . . . . . . . . . 1 . . 1 . 1 . 3 . . . Garrison 3 | . . . . . 3 . . . . . . . . . . . . . . . . Intercept . | . . . . . . . . . . . . . . . . . . . . . . Searches Triggered . | . . . . . . . . . . . . . . . . . . . . . . Construction Impeded 1 | . . . . . . . . . . . . . . . . 1 . . . . . Haulers Reinforced 2 | . . . . . . . . . . . . . . . . . . 1 1 . . Active Scanning Responses . | . . . . . . . . . . . . . . . . . . . . . . Cargo Convoy Interrupts . | . . . . . . . . . . . . . . . . . . . . . . Stealth | -11 -10 -10 -10 -9 -8 -8 -7 -7 -6 -6 -6 -5 -5 -5 -5 -4 -4 -4 -3 -3 -3 --------- Run | Yrd Mat Min Exi Min Mat Gar Fac DSF Fac Gar Fac Fac Gar Fac Gar Fac Was Fac Res Gar Res Distress Signals 9 | . 3 . . . . . . . . . 1 1 . . . . . 2 2 . . Communications Jammed . | . . . . . . . . . . . . . . . . . . . . . . Distress Signals . | . . . . . . . . . . . . . . . . . . . . . . Times Spotted 246 | . 11 5 . . 4 40 . 6 . 26 9 18 34 2 25 10 2 21 13 13 7 Peak Tracking Total 7 | . 4 2 . . 1 5 . 3 . 5 4 5 4 5 4 3 1 4 7 5 5 Tactical Retreats 14 | . 1 2 . . . 4 . . . 1 . 1 2 1 1 . . . . 1 . Traps | -11 -10 -10 -10 -9 -8 -8 -7 -7 -6 -6 -6 -5 -5 -5 -5 -4 -4 -4 -3 -3 -3 ------- Run | Yrd Mat Min Exi Min Mat Gar Fac DSF Fac Gar Fac Fac Gar Fac Gar Fac Was Fac Res Gar Res Traps Triggered 48 | . . . . . . 6 . 2 . 8 1 1 13 1 12 1 . 1 . 1 1 Indirectly . | . . . . . . . . . . . . . . . . . . . . . . Trap Hack Attempts . | . . . . . . . . . . . . . . . . . . . . . . Triggered . | . . . . . . . . . . . . . . . . . . . . . . Disarmed . | . . . . . . . . . . . . . . . . . . . . . . Reprogrammed . | . . . . . . . . . . . . . . . . . . . . . . Reused . | . . . . . . . . . . . . . . . . . . . . . . Traps Extracted . | . . . . . . . . . . . . . . . . . . . . . . Installed . | . . . . . . . . . . . . . . . . . . . . . . Triggered . | . . . . . . . . . . . . . . . . . . . . . . Objects Rigged 8 | . . . . . . . . . . . . . 4 . 4 . . . . . . Exploded 7 | . . . . . . . . . . . . . 4 . 3 . . . . . . Machines | -11 -10 -10 -10 -9 -8 -8 -7 -7 -6 -6 -6 -5 -5 -5 -5 -4 -4 -4 -3 -3 -3 ---------- Run | Yrd Mat Min Exi Min Mat Gar Fac DSF Fac Gar Fac Fac Gar Fac Gar Fac Was Fac Res Gar Res Machines Disabled 49 | . . 1 . . . 9 . . 1 5 . 1 6 1 6 7 . 10 1 1 . Max in Single Turn 1 | . . . . . . 1 . . 1 1 . 1 1 1 1 . . 1 . 1 . Garrison Access 2 | . . . . . . . . . . . . . . . . . . 2 . . . Garrison Relay 21 | . . . . . . 5 . . . 5 . . 5 . 5 . . . . 1 . Machines Repaired . | . . . . . . . . . . . . . . . . . . . . . . Machines Dismantled . | . . . . . . . . . . . . . . . . . . . . . . Machines Sabotaged . | . . . . . . . . . . . . . . . . . . . . . . Overloaded Fab Kills . | . . . . . . . . . . . . . . . . . . . . . . Hacking | -11 -10 -10 -10 -9 -8 -8 -7 -7 -6 -6 -6 -5 -5 -5 -5 -4 -4 -4 -3 -3 -3 --------- Run | Yrd Mat Min Exi Min Mat Gar Fac DSF Fac Gar Fac Fac Gar Fac Gar Fac Was Fac Res Gar Res Machines Accessed 47 | . 3 1 1 . 3 3 2 . 7 2 4 3 1 7 2 1 . 3 4 . . Terminals 28 | . 2 . . . 2 3 2 . 1 2 2 2 1 4 2 1 . 1 3 . . Fabricators 1 | . . . . . . . . . . . 1 . . . . . . . . . . Repair Stations 6 | . . . . . . . . . 2 . 1 . . 1 . . . 2 . . . Recycling Units 1 | . 1 . . . . . . . . . . . . . . . . . . . . Scanalyzers 4 | . . . . . . . . . 3 . . . . 1 . . . . . . . Garrison Access 5 | . . . . . 1 . . . 1 . . 1 . 1 . . . . 1 . . Total Hacks 104 | . 7 1 1 . 11 6 2 . 14 3 7 6 4 21 3 4 . 8 6 . . Successful 40 | . 3 1 1 . 5 2 1 . 9 1 1 2 . 7 1 1 . 2 3 . . Failed 64 | . 4 . . . 6 4 1 . 5 2 6 4 4 14 2 3 . 6 3 . . Catastrophic 9 | . . . . . . 1 1 . . . 2 1 . 2 1 1 . . . . . Database Lockouts . | . . . . . . . . . . . . . . . . . . . . . . Manual 15 | . 2 . 1 . 3 . . . . . 1 . . 5 . . . 1 2 . . Terminals 71 | . 6 . . . 9 6 2 . 3 3 3 5 4 15 3 4 . 3 5 . . Fabricators 3 | . . . . . . . . . . . 3 . . . . . . . . . . Repair Stations 11 | . . . . . . . . . 4 . 1 . . 1 . . . 5 . . . Recycling Units 1 | . 1 . . . . . . . . . . . . . . . . . . . . Scanalyzers 10 | . . . . . . . . . 6 . . . . 4 . . . . . . . Garrison Access 6 | . . . . . 2 . . . 1 . . 1 . 1 . . . . 1 . . Terminal Hacks 24 | . 2 1 1 . 4 2 1 . 1 1 1 1 . 5 1 1 . . 2 . . Part Schematic 1 | . . . . . . . . . 1 . . . . . . . . . . . . Prototype ID Bank 2 | . 1 . . . 1 . . . . . . . . . . . . . . . . Open Door 1 | . . 1 . . . . . . . . . . . . . . . . . . . Open DSF 1 | . . . . . . . 1 . . . . . . . . . . . . . . Branch Access Points 1 | . . . . . . . . . . . . . . . . . . . 1 . . Emergency Access Points 2 | . . . . . . . . . . 1 . . . . 1 . . . . . . Alert Level 5 | . . . . . 2 . . . . . 1 . . 1 . . . . 1 . . Unreport Threat 6 | . . . . . . . . . . . . 1 . 4 . 1 . . . . . Locate Traps 1 | . . . . . 1 . . . . . . . . . . . . . . . . Zone Layout 1 | . 1 . . . . . . . . . . . . . . . . . . . . Patrol Navigation 1 | . . . . . . 1 . . . . . . . . . . . . . . . Security Stations 1 | . . . . . . 1 . . . . . . . . . . . . . . . Derelict Proto ID Bank 1 | . . . 1 . . . . . . . . . . . . . . . . . . Fabricator Hacks . | . . . . . . . . . . . . . . . . . . . . . . Repair Station Hacks 6 | . . . . . . . . . 4 . . . . . . . . 2 . . . Scan Component 4 | . . . . . . . . . 2 . . . . . . . . 2 . . . Repair 2 | . . . . . . . . . 2 . . . . . . . . . . . . Recycling Unit Hacks . | . . . . . . . . . . . . . . . . . . . . . . Scanalyzer 4 | . . . . . . . . . 3 . . . . 1 . . . . . . . Insert Component 3 | . . . . . . . . . 2 . . . . 1 . . . . . . . Analyze 1 | . . . . . . . . . 1 . . . . . . . . . . . . Garrison Access Hacks 5 | . . . . . 1 . . . 1 . . 1 . 1 . . . . 1 . . Unlock Access 5 | . . . . . 1 . . . 1 . . 1 . 1 . . . . 1 . . Unauthorized Hacks 1 | . 1 . . . . . . . . . . . . . . . . . . . . Terminals . | . . . . . . . . . . . . . . . . . . . . . . Fabricators . | . . . . . . . . . . . . . . . . . . . . . . Repair Stations . | . . . . . . . . . . . . . . . . . . . . . . Recycling Units 1 | . 1 . . . . . . . . . . . . . . . . . . . . Mask 1 | . 1 . . . . . . . . . . . . . . . . . . . . Scanalyzers . | . . . . . . . . . . . . . . . . . . . . . . Garrison Access . | . . . . . . . . . . . . . . . . . . . . . . Data Cores Recovered 1 | . 1 . . . . . . . . . . . . . . . . . . . . Used . | . . . . . . . . . . . . . . . . . . . . . . Hacking Detections 43 | . 3 . . . 3 3 2 . 6 2 4 3 1 7 2 1 . 3 3 . . Full Trace Events 4 | . . . . . . 1 . . . . 1 . 1 . . . . 1 . . . Feedback Events 1 | . . . . . . 1 . . . . . . . . . . . . . . . Corruption 1 | . . . . . . 1 . . . . . . . . . . . . . . . Feedback Blocked . | . . . . . . . . . . . . . . . . . . . . . . Robot Schematics Acquired . | . . . . . . . . . . . . . . . . . . . . . . Robots Built . | . . . . . . . . . . . . . . . . . . . . . . Authchips . | . . . . . . . . . . . . . . . . . . . . . . Time . | . . . . . . . . . . . . . . . . . . . . . . Total Robot Build Rating . | . . . . . . . . . . . . . . . . . . . . . . Part Schematics Acquired 2 | . . . . . . . . . 2 . . . . . . . . . . . . Parts Built . | . . . . . . . . . . . . . . . . . . . . . . Authchips . | . . . . . . . . . . . . . . . . . . . . . . Time . | . . . . . . . . . . . . . . . . . . . . . . Total Part Build Rating . | . . . . . . . . . . . . . . . . . . . . . . Parts Repaired 2 | . . . . . . . . . 2 . . . . . . . . . . . . Time 82 | . . . . . . . . . 82 . . . . . . . . . . . . Parts Recycled . | . . . . . . . . . . . . . . . . . . . . . . Recycled Matter . | . . . . . . . . . . . . . . . . . . . . . . Retrieved Matter . | . . . . . . . . . . . . . . . . . . . . . . Retrieved Components . | . . . . . . . . . . . . . . . . . . . . . . Parts Scanalyzed 3 | . . . . . . . . . 2 . . . . 1 . . . . . . . Part Schematics Acquired 1 | . . . . . . . . . 1 . . . . . . . . . . . . Parts Damaged . | . . . . . . . . . . . . . . . . . . . . . . Bothacking | -11 -10 -10 -10 -9 -8 -8 -7 -7 -6 -6 -6 -5 -5 -5 -5 -4 -4 -4 -3 -3 -3 ------------ Run | Yrd Mat Min Exi Min Mat Gar Fac DSF Fac Gar Fac Fac Gar Fac Gar Fac Was Fac Res Gar Res Used RIF Installer 5 | . . . . . . 1 . . . 1 . . 1 . 2 . . . . . . Coupler Efficiency 1 | . . . . . . . . . . . . . . . 1 . . . . . . Threat Obfuscator 1 | . . . . . . . . . . 1 . . . . . . . . . . . Program Shield 1 | . . . . . . . . . . . . . . . 1 . . . . . . Autooverride 1 | . . . . . . . . . . . . . 1 . . . . . . . . Robots Hacked 48 | . . . . . . 5 . . 1 11 2 . 6 2 15 4 . . 1 . 1 Non-combat 3 | . . . . . . . . . 1 . . . . 2 . . . . . . . Combat 45 | . . . . . . 5 . . . 11 2 . 6 . 15 4 . . 1 . 1 Autooverrided 8 | . . . . . . . . . . . . . . . 6 1 . . 1 . . Robot Hacks Applied 43 | . . . . . . 5 . . 2 12 2 . 6 2 10 3 . . . . 1 start_evac 1 | . . . . . . . . . 1 . . . . . . . . . . . . mark_system 1 | . . . . . . . . . . 1 . . . . . . . . . . . disable_weapons 1 | . . . . . . . . . . 1 . . . . . . . . . . . reboot_system 2 | . . . . . . 1 . . . . . . 1 . . . . . . . . streamctrl_high 2 | . . . . . . . . . . 1 . . . . 1 . . . . . . formatsys_low 2 | . . . . . . . . . 1 . . . . 1 . . . . . . . formatsys_high 34 | . . . . . . 4 . . . 9 2 . 5 1 9 3 . . . . 1 Relay Couplers Released 94 | . . . . . . 23 . . . 19 . . 22 . 22 . . 5 . 3 . Machine Destruction 90 | . . . . . . 23 . . . 19 . . 22 . 18 . . 5 . 3 . Programmers 4 | . . . . . . . . . . . . . . . 4 . . . . . . Attached 31 | . . . . . . 5 . . . 9 1 1 5 . 7 1 . . . 1 1 Fabnet Peak Effective % . | . . . . . . . . . . . . . . . . . . . . . . Robots Rewired 8 | . . . . . . 4 . . . . . . 2 . 2 . . . . . . Allies Hacked 1 | . . . . . . . . . . . . . . . . . . . 1 . . Hacks Repelled . | . . . . . . . . . . . . . . . . . . . . . . Allies | -11 -10 -10 -10 -9 -8 -8 -7 -7 -6 -6 -6 -5 -5 -5 -5 -4 -4 -4 -3 -3 -3 -------- Run | Yrd Mat Min Exi Min Mat Gar Fac DSF Fac Gar Fac Fac Gar Fac Gar Fac Was Fac Res Gar Res Total Allies 82 | . . 3 . . . 9 . . 1 12 2 . 7 2 17 4 23 . 1 . 1 Largest Group 27 | . . 3 . . . 5 5 5 1 6 5 . 4 6 7 9 27 27 19 13 7 Highest-Rated Group 1300 | . . 40 . . . 96 75 75 14 245 236 . 198 211 470 680 1300 1300 930 604 357 Highest-Rated Ally 137 | . . 16 . . . 31 24 24 14 80 80 . 99 92 119 137 137 137 119 119 137 Total Orders 15 | . . . . . . . . . 1 . . . . 5 6 3 . . . . . STAY 3 | . . . . . . . . . . . . . . . 3 . . . . . . FOLLOW 1 | . . . . . . . . . . . . . . . 1 . . . . . . AID 11 | . . . . . . . . . 1 . . . . 5 2 3 . . . . . Ally Attacks 724 | . . 16 . . . 35 . 37 . 69 21 . 51 42 91 61 11 168 67 43 12 Total Damage 19998 | . . 140 . . . 439 . 449 . 1777 521 . 1325 492 2424 2099 305 6502 1733 1424 368 Kills 142 | . . 1 . . . 8 . 3 . 18 3 . 11 2 16 14 2 42 11 9 2 Allies Corrupted 4 | . . . . . . . . . . . 2 . . . . . . . . . 2 Allies Melted 2 | . . . . . . . . . . . . . . . 1 . . 1 . . . Intel | -11 -10 -10 -10 -9 -8 -8 -7 -7 -6 -6 -6 -5 -5 -5 -5 -4 -4 -4 -3 -3 -3 ------- Run | Yrd Mat Min Exi Min Mat Gar Fac DSF Fac Gar Fac Fac Gar Fac Gar Fac Was Fac Res Gar Res Robot Analysis Total . | . . . . . . . . . . . . . . . . . . . . . . Derelict Logs Recovered . | . . . . . . . . . . . . . . . . . . . . . . Drone Launches . | . . . . . . . . . . . . . . . . . . . . . . Drone Recoveries . | . . . . . . . . . . . . . . . . . . . . . . Exploration | -11 -10 -10 -10 -9 -8 -8 -7 -7 -6 -6 -6 -5 -5 -5 -5 -4 -4 -4 -3 -3 -3 ------------- Run | Yrd Mat Min Exi Min Mat Gar Fac DSF Fac Gar Fac Fac Gar Fac Gar Fac Was Fac Res Gar Res Turns Passed 19189 | 82 305 519 123 140 936 2304 236 250 719 2883 630 1768 2018 412 2829 374 632 761 484 628 156 Spaces Moved 15067 | 41 180 344 210 194 893 2719 269 356 747 1712 304 916 1666 514 2398 206 317 414 280 324 63 Core 69 | . . . . . . 6 . . . 63 . . . . . . . . . . . Treads 1826 | . . . . . . . . . . . . 13 . . 209 206 317 414 280 324 63 Legs 1400 | 41 180 135 . . . . . . . 534 304 206 . . . . . . . . . Wheels . | . . . . . . . . . . . . . . . . . . . . . . Hover 2300 | . . 209 210 194 189 . . . . . . 697 801 . . . . . . . . Flight 9472 | . . . . . 704 2713 269 356 747 1115 . . 865 514 2189 . . . . . . Fastest Speed 32 | 120 120 56 56 56 32 32 37 34 34 34 190 56 37 34 34 160 160 160 160 160 160 Average Speed 80 | 120 120 81 56 56 44 47 44 37 34 120 190 149 72 44 45 160 160 160 160 160 160 Slowest Speed 595 | 120 120 120 56 56 116 120 117 117 34 595 190 270 125 125 160 160 160 160 160 160 160 Overloaded Moves . | . . . . . . . . . . . . . . . . . . . . . . Propulsion Burnouts . | . . . . . . . . . . . . . . . . . . . . . . Robots Hopped 2 | . . . . . 1 . . . . 1 . . . . . . . . . . . Cave-ins Triggered 1 | . . . . . . . . . . 1 . . . . . . . . . . . Exploration Rate (%) 42 | 3 30 52 59 51 43 89 7 97 21 91 9 22 89 16 91 8 91 17 13 22 3 Regions Visited 21 Branch Regions 3 Pre-discovered Areas . | . . . . . . . . . . . . . . . . . . . . . . Known Exits Taken 8 | . . . . . 1 . 1 . 1 . 1 1 . 1 . . . 1 1 . . Unknown Exits Taken 5 | 1 1 1 1 1 . . . . . . . . . . . . . . . . . Scrap Searched 5 | . . 1 . 4 . . . . . . . . . . . . . . . . . Spaces Dug 109 | . . . . . . 15 3 9 20 16 . 10 31 . 5 . . . . . . Terrain Destroyed 410 | . . . . . . 21 3 9 20 16 4 18 150 . 123 . . 22 23 . 1 Melee 108 | . . . . . . 15 3 9 20 16 . 9 31 . 5 . . . . . . Projectile 14 | . . . . . . . . . . . 4 9 . . . . . 1 . . . AOE 286 | . . . . . . 6 . . . . . . 118 . 118 . . 21 23 . . Terrain Rammed . | . . . . . . . . . . . . . . . . . . . . . . Walls Destroyed . | . . . . . . . . . . . . . . . . . . . . . . Machines Disabled . | . . . . . . . . . . . . . . . . . . . . . . Actions | -11 -10 -10 -10 -9 -8 -8 -7 -7 -6 -6 -6 -5 -5 -5 -5 -4 -4 -4 -3 -3 -3 --------- Run | Yrd Mat Min Exi Min Mat Gar Fac DSF Fac Gar Fac Fac Gar Fac Gar Fac Was Fac Res Gar Res Total 21268 | 58 234 574 215 222 1407 3535 381 431 1169 2432 343 1235 2307 689 4019 251 441 500 306 423 96 Wait 4471 | 4 32 210 4 28 459 475 101 10 379 516 15 198 258 150 1306 41 118 66 6 88 7 Move 15047 | 40 179 343 209 193 891 2718 268 355 747 1709 303 916 1665 514 2397 206 316 413 279 323 63 Hop 2 | . . . . . 1 . . . . 1 . . . . . . . . . . . Pick Up 139 | 3 3 5 1 . 11 26 3 . 6 25 2 14 16 1 14 . 1 1 4 2 1 Fast Attach 57 | . . 1 . . 4 3 1 2 4 2 1 18 8 8 4 . . 1 . . . Attach 79 | . . 2 . . 8 15 1 . 2 18 2 6 9 1 5 1 . 1 5 1 2 Detach 11 | . . . . . 1 6 . . . . . . 3 . 1 . . . . . . Swap 69 | 1 . 1 . . 4 12 . . 2 5 3 3 19 1 12 . . 4 1 . 1 Drop 146 | 2 2 6 1 . 11 23 4 . 6 20 3 18 18 8 17 . . 4 1 2 . Fire 356 | 8 18 6 . 1 17 73 . 18 2 33 14 38 52 3 24 3 3 5 10 6 22 Melee 345 | . . . . . . 84 3 10 21 47 . 24 76 3 72 . . 5 . . . Ram . | . . . . . . . . . . . . . . . . . . . . . . Kick . | . . . . . . . . . . . . . . . . . . . . . . Crush . | . . . . . . . . . . . . . . . . . . . . . . Escape Stasis 534 | . . . . . . 100 . 36 . 55 . . 179 . 163 . . . . 1 . Rewire 4 | . . . . . . . . . . 1 . . . . . . 3 . . . . Trap 8 | . . . . . . . . . . . . . 4 . 4 . . . . . . Miscellaneous . | . . . . . . . . . . . . . . . . . . . . . . Route ------- -11/Scrapyard -10/Materials -10/Mines (discovered 3 exits: [*Mat x2] / *Exi) -10/Exiles -9/Mines -8/Materials -8/Garrison (discovered 3 exits: *Fac x3) -7/Factory -7/DSF -6/Factory (discovered 2 exits: [*Low] / Gar) -6/Garrison (discovered 3 exits: *Fac x3) -6/Factory -5/Factory -5/Garrison (discovered 3 exits: *Fac x3) -5/Factory (discovered 2 exits: *Fac / Gar) -5/Garrison (discovered 2 exits: *Fac x2) -4/Factory -4/Waste -4/Factory -3/Research (discovered 3 exits: Qua x2 / Gar) -3/Garrison -3/Research History --------- Turn | Location | Event 1 | -11/Scrapyard | Discovered new exit (range 3) 83 | -11/Scrapyard | Entered Materials 315 | -10/Materials | Build established: Mutant 379 | -10/Materials | Discovered new exit (range 8) 388 | -10/Materials | Entered Mines 390 | -10/Mines | Discovered new exit (range 9) 392 | -10/Mines | Assisted by bots powering up and referring to "LRC-V3" 720 | -10/Mines | Met a Derelict shopkeep closing up shop 804 | -10/Mines | Deemed a non-threat by the Exiles lab entrance 823 | -10/Mines | Discovered new exit (range 6) 885 | -10/Mines | Discovered new exit (range 5) 907 | -10/Mines | Entered Exiles 922 | -10/Exiles | Met 8R-AWN 931 | -10/Exiles | Met EX-HEX 947 | -10/Exiles | Met EX-BIN 954 | -10/Exiles | Aligned with FarCom system 955 | -10/Exiles | Given EX-Vault access code 968 | -10/Exiles | Opened EX-Vault 976 | -10/Exiles | Found PSU Rigger 988 | -10/Exiles | Warned to stay clear of 0b10 Research branches 1005 | -10/Exiles | Met EX-DEC 1024 | -10/Exiles | Discovered new exit (range 10) 1030 | -10/Exiles | Left Exiles lab with PSU Rigger 1030 | -10/Exiles | Entered Mines 1135 | -9/Mines | Discovered new exit (range 15) 1170 | -9/Mines | Entered Materials 1170 | -8/Materials | Evolved 4 slots: Utility x4 1218 | -8/Materials | Garrison activated, responded to threat 1983 | -8/Materials | Build established: Scout 2106 | -8/Materials | Identified exit to Garrison 2106 | -8/Materials | Entered Garrison 2272 | -8/Garrison | Triggered checkpoint 2286 | -8/Garrison | Discovered new exit (range 11) 2377 | -8/Garrison | Learned Factory security intel 2398 | -8/Garrison | Triggered checkpoint 2400 | -8/Garrison | Triggered checkpoint 2667 | -8/Garrison | Discovered new exit (range 12) 2745 | -8/Garrison | Build established: Sprinter 2839 | -8/Garrison | Lost 3 parts (2n1u) 2848 | -8/Garrison | Triggered checkpoint 2909 | -8/Garrison | Rescued a captive Derelict 3033 | -8/Garrison | Discovered new exit (range 11) 3088 | -8/Garrison | Build established: Mutant 3268 | -8/Garrison | Triggered checkpoint 3448 | -8/Garrison | Triggered checkpoint 3534 | -8/Garrison | Triggered checkpoint 3604 | -8/Garrison | Lost 3 allies 3608 | -8/Garrison | Installed Relay Interface Framework 3644 | -8/Garrison | Garrison Relay disabled 3686 | -8/Garrison | Triggered checkpoint 3814 | -8/Garrison | Triggered checkpoint 3833 | -8/Garrison | Garrison Relay disabled 3916 | -8/Garrison | Garrison Relay disabled 3970 | -8/Garrison | Garrison Relay disabled 4131 | -8/Garrison | Triggered checkpoint 4163 | -8/Garrison | Garrison Relay disabled 4410 | -8/Garrison | Entered Factory 4410 | -7/Factory | Accompanied by 5 allies 4410 | -7/Factory | Evolved 2 slots: Propulsion x1, Utility x1 4437 | -7/Factory | Build established: Commander-Mutant 4640 | -7/Factory | Identified exit to DSF 4646 | -7/Factory | Entered DSF 4646 | -7/DSF | Accompanied by 5 allies 4687 | -7/DSF | Additional patrols routed to DSF 4728 | -7/DSF | Discovered new exit (range 16) 4896 | -7/DSF | Entered Factory 4896 | -6/Factory | Evolved 2 slots: Utility x2 4968 | -6/Factory | Discovered new exit (range 20) 4984 | -6/Factory | Build established: Bothacker-Mutant 5029 | -6/Factory | Repaired Gauss Cannon 5372 | -6/Factory | Build established: Bothacker-Scout 5538 | -6/Factory | Repaired Great Maul 5615 | -6/Factory | Identified exit to Garrison 5615 | -6/Factory | Entered Garrison 5847 | -6/Garrison | Garrison Relay disabled 5853 | -6/Garrison | Triggered checkpoint 5957 | -6/Garrison | Triggered checkpoint 5961 | -6/Garrison | Triggered checkpoint 6009 | -6/Garrison | Discovered new exit (range 9) 6019 | -6/Garrison | Triggered checkpoint 6032 | -6/Garrison | Garrison Relay disabled 6046 | -6/Garrison | Identified exit to Factory 6061 | -6/Garrison | Triggered checkpoint 6068 | -6/Garrison | Discovered exit to Factory (range 9) 6091 | -6/Garrison | Triggered checkpoint 6094 | -6/Garrison | Garrison Relay disabled 6109 | -6/Garrison | Expanded RIF knowledge: Threat Obfuscation 6374 | -6/Garrison | Build established: Bothacker-Mutant 6448 | -6/Garrison | Spotted B-75 Beast 6455 | -6/Garrison | Crushed by falling debris 6485 | -6/Garrison | Allies destroyed B-75 Beast 6503 | -6/Garrison | Lost 4 parts (3n1u) 6571 | -6/Garrison | Triggered checkpoint 6663 | -6/Garrison | Triggered checkpoint 6692 | -6/Garrison | Discovered exit to Factory (range 11) 6798 | -6/Garrison | Garrison Relay disabled 6845 | -6/Garrison | Garrison Relay disabled 7454 | -6/Garrison | Found Heavy Servo Lattice 8434 | -6/Garrison | Found embedded Infiltrators 8498 | -6/Garrison | Entered Factory 8498 | -6/Factory | Accompanied by 5 allies 8848 | -6/Factory | First assault squad dispatched 9056 | -6/Factory | Discovered new exit (range 6) 9111 | -6/Factory | Identified exit to Factory 9128 | -6/Factory | Entered another Factory area 9128 | -5/Factory | Evolved 2 slots: Power x1, Utility x1 9472 | -5/Factory | Build established: Assassin 9761 | -5/Factory | Lost 3 parts (3u) 10029 | -5/Factory | Spotted B-75 Beast 10344 | -5/Factory | Lost 3 parts (1p1u1w) 10646 | -5/Factory | Build established: Scavenger-Scout 10750 | -5/Factory | Found Imp. Powered Armor 10896 | -5/Factory | Identified exit to Garrison 10896 | -5/Factory | Entered Garrison 10904 | -5/Garrison | Garrison Relay disabled 11284 | -5/Garrison | Triggered checkpoint 11371 | -5/Garrison | Garrison Relay disabled 11774 | -5/Garrison | Spotted B-75 Beast 11801 | -5/Garrison | Destroyed B-75 Beast 11804 | -5/Garrison | Build established: Mutant 12065 | -5/Garrison | Discovered new exit (range 12) 12080 | -5/Garrison | Identified exit to Factory 12138 | -5/Garrison | Spotted Executioner 12138 | -5/Garrison | Spotted Executioner 12166 | -5/Garrison | Rewired Striker 12170 | -5/Garrison | Rewired Striker 12178 | -5/Garrison | Destroyed Executioner 12182 | -5/Garrison | Destroyed Executioner 12205 | -5/Garrison | Found Prototype Device 12206 | -5/Garrison | Identified Adv. Kinecellerator 12223 | -5/Garrison | Found Prototype Processor 12223 | -5/Garrison | Identified Exp. Core Analyzer 12292 | -5/Garrison | Triggered checkpoint 12317 | -5/Garrison | Discovered exit to Factory (range 12) 12461 | -5/Garrison | Build established: Scavenger-Mutant 12467 | -5/Garrison | Garrison Relay disabled 12500 | -5/Garrison | Triggered checkpoint 12528 | -5/Garrison | Triggered checkpoint 12570 | -5/Garrison | Triggered checkpoint 12582 | -5/Garrison | Garrison Relay disabled 12661 | -5/Garrison | Discovered exit to Factory (range 12) 12666 | -5/Garrison | Triggered checkpoint 12684 | -5/Garrison | Expanded RIF knowledge: Autooverride 12770 | -5/Garrison | Triggered checkpoint 12800 | -5/Garrison | Garrison Relay disabled 12914 | -5/Garrison | Entered Factory 12914 | -5/Factory | Accompanied by 4 allies 12924 | -5/Factory | Discovered new exit (range 8) 12927 | -5/Factory | Identified exit to Factory 13214 | -5/Factory | First assault squad dispatched 13317 | -5/Factory | Identified exit to Garrison 13326 | -5/Factory | Entered Garrison 13326 | -5/Garrison | Accompanied by 3 allies 13694 | -5/Garrison | Expanded RIF knowledge: Program Shield 13953 | -5/Garrison | Spotted B-75 Beast 13995 | -5/Garrison | Destroyed B-75 Beast 14004 | -5/Garrison | Triggered checkpoint 14021 | -5/Garrison | Expanded RIF knowledge: Coupler Efficiency 14048 | -5/Garrison | Discovered exit to Factory (range 10) 14312 | -5/Garrison | Core integrity fell below 50% 14334 | -5/Garrison | Garrison Relay disabled 14342 | -5/Garrison | Garrison Relay disabled 14350 | -5/Garrison | Triggered checkpoint 14446 | -5/Garrison | Triggered checkpoint 14459 | -5/Garrison | Garrison Relay disabled 14710 | -5/Garrison | Build established: Bothacker-Mutant 15350 | -5/Garrison | Triggered checkpoint 15396 | -5/Garrison | Triggered checkpoint 15466 | -5/Garrison | Garrison Relay disabled 15474 | -5/Garrison | Triggered checkpoint 15547 | -5/Garrison | Discovered exit to Factory (range 12) 15558 | -5/Garrison | Triggered checkpoint 15568 | -5/Garrison | Rewired Executioner 15582 | -5/Garrison | Rewired Executioner 15594 | -5/Garrison | Garrison Relay disabled 15672 | -5/Garrison | Spotted B-75 Beast 15683 | -5/Garrison | Assimilated Beast 6a with formatsys_high 16155 | -5/Garrison | Entered Factory 16155 | -4/Factory | Accompanied by 6 allies 16155 | -4/Factory | Evolved 2 slots: Propulsion x1, Utility x1 16405 | -4/Factory | First assault squad dispatched 16529 | -4/Factory | Sucked down chute 16529 | -4/Factory | Entered Waste 16529 | -4/Waste | Met up with 3 allies sucked down the chute earlier 16530 | -4/Waste | Joined by Warlord forces that had cleared the area 16639 | -4/Waste | 4 allies followed down the chute 16850 | -4/Waste | Discovered new exit (range 20) 17069 | -4/Waste | A Compactor rumbled back to life 17070 | -4/Waste | Spotted C-40 Crusher 17071 | -4/Waste | Allies destroyed C-40 Crusher 17129 | -4/Waste | A Compactor rumbled back to life 17129 | -4/Waste | Allies destroyed C-40 Crusher 17134 | -4/Waste | Identified exit to Factory 17161 | -4/Waste | Entered Factory 17161 | -4/Factory | Accompanied by 27 allies 17501 | -4/Factory | Lost 6 allies 17662 | -4/Factory | Spotted B-86 Titan 17673 | -4/Factory | Allies destroyed B-86 Titan 17832 | -4/Factory | Discovered new exit (range 10) 17849 | -4/Factory | Identified exit to Research 17911 | -4/Factory | First assault squad dispatched 17922 | -4/Factory | Entered Research 17922 | -3/Research | Accompanied by 18 allies 17922 | -3/Research | Evolved 2 slots: Utility x2 18033 | -3/Research | Spotted B-86 Titan 18051 | -3/Research | Allies destroyed B-86 Titan 18247 | -3/Research | Identified exit to Quarantine 18396 | -3/Research | Identified exit to Garrison 18406 | -3/Research | Entered Garrison 18406 | -3/Garrison | Accompanied by 13 allies 18544 | -3/Garrison | Triggered checkpoint 18597 | -3/Garrison | Discovered new exit (range 5) 18607 | -3/Garrison | Lost 5 allies 18692 | -3/Garrison | Triggered checkpoint 18783 | -3/Garrison | Garrison Relay disabled 19033 | -3/Garrison | Identified exit to Research 19034 | -3/Garrison | Entered Research 19034 | -3/Research | Accompanied by 7 allies 19178 | -3/Research | Lost 8 allies 19190 | -3/Research | Self-destructed Last Messages --------------- 19180_ Slug penetrates Wall. 19182_ R-10 Processor suffers critical hit (Destroy). 19182_ R-10 Processor destroyed. 19182_ Slug penetrates K-01 Serf. 19182_ K-01 Serf destroyed. 19182_ Slug penetrates Wall. 19183_ Wall collapses. 19183_ K-01 Serf collects debris. 19184_ Slug penetrates H-77 Assassin. 19185_ Penetrated by Slug. 19185_ Slug penetrates Wall. 19186_ K-01 Serf collects debris. 19186_ Slug penetrates G-73 Enforcer. 19186_ G-73 Enforcer suffers critical hit (Destroy). 19186_ Destroyed Adv. Heat Sink. 19186_ Railgun destroyed. 19188_ Slug penetrates Wall. 19189_ K-01 Serf collects debris. Map ----- +----------------------------------------------------+ | ?????????????????????????????????????????????????? | | ?????????????????????????????????????????????????? | | ???????????????????????????????????????????????? | | ?????????????????????????????????????#####???? | | ????????????????????????????????????? ????? | | ????????????????????????????????????? ??? # | | ????????????????????????????????# ???" """ # | | ????????????????????????????????# ??" """ + | | ????????????????????????????????# """ """ # | | ????????????????????????????????# # | | ????????????????????????????????# # | | ????????????????????????????????#! """ "" # | | ????????????????????????????????# "" " # | | ????????????????????????????????# "" ?# | | ????????????????????????????????? ? # | | ?????????????????## ????????##???? ?# | | ??????????????#+## ######"#######%##+##???# | | ???????????? ###### | | ????????????? h % ^ % | | ?????????????????# ""### [ | | ?????????????????##h#####;;!% %% % | | ?????????????????# =R!!%+! ! !%[ | | ?????????????????# =%g[%h#################### | | ?????????????????# g=k[#?????# ???# | | ?????????????????# """=[!#?????# ??# | | ?????????????????# """ @#?????# ?# | | ?????????????????# """ #?????# # | | ?????????????????# #?????# # | | ?????????????????# #?????# + | | ?????????????????# ! #?????# # | | ?????????????????##########?????# + | | ????????????????????????????????# ##### | | ????????????????????????????????# ????? | | ????????????????????????????????# ?????? | | ????????????????????????????????# ?????? | | ????????????????????????????????###########??????? | | | | | | | | | | | | | | | | | | | | | | | | | | | | | +----------------------------------------------------+ Best States ------------- Heat Dissipation 46 Energy Generation 45 Energy Capacity 800 Matter Stores 300 Matter Capacity 300 Sight Range 20 Robot Scan Range 16 Terrain Scan Range 20 Terrain Scan Density 110 Cloak Strength 2 Additional Mass Support 12 Corruption Containment 8 Corruption Block 20 Armor Coverage 400 Resistance: TH 10 Core Shielding 30 Propulsion Shielding 90 Point Defense Rating 160 Phase Shifting 15 Evasion (%) 63 Targeting Accuracy 13 Target Analysis 6 Core Analysis 8 Recoil Reduction 2 Defensive Hacking 10 Relay Coupler Types 5 Relay Coupler Value 103 Item Schematics ----------------- Thermic Laser | -6/Factory | Scanalyzed Point Defense System | -6/Factory | Hacked Robot Schematics ------------------ None Fabricated ------------ Nothing Alien Tech Used ----------------- None Achievements -------------- Beloved Dangerous Findings Generalissimo We Are Legion Challenges ------------ None Game ------ Seed GreatTitaniumLaser Manual? 0 Play Time 03:27:11 Cumulative 84.0 hours Start 2024.09.01 @ 11:13:28 End 2024.09.07 @ 00:14:07 Sessions 8 Manual Loads 0 Difficulty Rogue Special Mode None Game No. 136 Rogue 132 Adventurer 4 Explorer 0 Win Type - Total 0 Types 0/0/0/0/0/0/0/0/0 Lore% 39 Gallery% 49 Achievement% 37 Wizard Run 0 Options --------- Layout 2 ASCII 0 Keyboard 0 Movement Mouse Keybinds 0 Fullscreen 2 Font 24/Smallcaps Map View 50x44 Zoom Use 0% Tactical HUD 1 Map Filters NONE Filters NONE Steam 1 RUN: a408543c-0843-4a2a-bbc4-a9969491f792